Workbook

Sheet ActivityRewardConfig
B1: Id | C1: ActivityId | D1: Values | E1: Reward | F1: Sort | G1: Drawing | H1: ExtraParm | I1: TotalValues | J1: MultiplyingPower | K1: ContentsShow | L1: Jump | M1: Nouse
B2: int | C2: int | D2: mut,int#int,2 | E2: mut,int#int,2 | F2: int | G2: int | H2: int | I2: int | J2: int | K2: string | L2: mut,int#int,1 | M2: string
B3: 2 | C3: 2 | D3: 2 | E3: 2 | F3: 3 | G3: 3 | H3: 3 | I3: 3 | J3: 3 | K3: 3 | L3: 3 | M3: 0
B4: 索引 | C4: 活动id | D4: 参数 | E4: 奖励 | F4: 排序 | G4: 立绘 | H4: 参数 | I4: 总价值 | J4: 价值总倍率 | K4: 达人文字描述 | L4: 跳转 | M4: 备注
A5: 默认值
A6: 正确性校对
A7: 校对值
B8: 1 | C8: 56 | D8: 1 | E8: 16#300 | F8: 1 | K8: 大量妖晶 | M8: 8日奖励
B9: 2 | C9: 56 | D9: 2 | E9: 10043#1 | F9: 2 | K9: 5星金将
B10: 3 | C10: 56 | D10: 3 | E10: 19#10 | F10: 3 | K10: 十连点将
B11: 4 | C11: 56 | D11: 4 | E11: 70034#1 | F11: 4 | K11: 金装宝箱
B12: 5 | C12: 56 | D12: 5 | E12: 61#1 | F12: 5 | K12: 高级探宝券
B13: 6 | C13: 56 | D13: 6 | E13: 5000011#1 | F13: 6 | K13: 伏羲魂印
B14: 7 | C14: 56 | D14: 7 | E14: 19#20 | F14: 7 | K14: 二十连点将
B15: 8 | C15: 56 | D15: 8 | E15: 10022#1 | F15: 8 | K15: 5星金将
B16: 11 | C16: 1 | D16: 2 | E16: 16#50 | F16: 1 | K16: 七日累计在线2分钟 | M16: 在线奖励
B17: 12 | C17: 1 | D17: 10 | E17: 14#50000 | F17: 2 | K17: 七日累计在线10分钟
B18: 13 | C18: 1 | D18: 15 | E18: 3#50000 | F18: 3 | K18: 七日累计在线15分钟
B19: 14 | C19: 1 | D19: 20 | E19: 10071#1 | F19: 4 | K19: 七日累计在线20分钟
B20: 15 | C20: 1 | D20: 25 | E20: 16#100 | F20: 5 | K20: 七日累计在线25分钟
B21: 16 | C21: 1 | D21: 30 | E21: 14#150000 | F21: 6 | K21: 七日累计在线30分钟
B22: 17 | C22: 1 | D22: 40 | E22: 3#150000 | F22: 7 | K22: 七日累计在线40分钟
B23: 18 | C23: 1 | D23: 60 | E23: 10060#1 | F23: 8 | K23: 七日累计在线60分钟
B24: 19 | C24: 1 | D24: 90 | E24: 16#200 | F24: 9 | K24: 七日累计在线90分钟
B25: 20 | C25: 1 | D25: 120 | E25: 14#300000 | F25: 10 | K25: 七日累计在线120分钟
B26: 21 | C26: 1 | D26: 150 | E26: 3#300000 | F26: 11 | K26: 七日累计在线150分钟
B27: 22 | C27: 1 | D27: 180 | E27: 19#5 | F27: 12 | K27: 七日累计在线180分钟
A28: 剑影仙踪 | B28: 30 | C28: 42 | D28: 1|4151 | E28: 10026#1 | F28: 1 | G28: 10026 | H28: 12013 | K28: 通关简单4-15 | L28: 26078
A29: 剑影仙踪 | B29: 31 | C29: 42 | D29: 2|2 | E29: 10026#1 | F29: 1 | G29: 10026 | H29: 10043 | K29: 次日登录 | L29: 15001
A30: 剑影仙踪 | B30: 32 | C30: 42 | D30: 3|2 | E30: 10026#1 | F30: 1 | G30: 10026 | H30: 10037 | K30: 激活豪华月卡 | L30: 36004
B31: 46 | C31: 4 | D31: 1 | E31: 10085#1 | F31: 1 | M31: 首充奖励
B32: 47 | C32: 5 | D32: 6#1 | E32: 10023#1|19#1 | F32: 1 | I32: 36 | M32: 累计充值奖励
B33: 48 | C33: 5 | D33: 6#2 | E33: 60100#1|60140#1 | F33: 2 | I33: 36
B34: 49 | C34: 5 | D34: 6#3 | E34: 60125#1|60135#1 | F34: 3 | I34: 36
B35: 50 | C35: 5 | D35: 100#1 | E35: 60103#1|60144#1 | F35: 1 | I35: 5000 | M35: 豪华首冲
B36: 51 | C36: 5 | D36: 100#2 | E36: 60128#1|20#1 | F36: 2 | I36: 5000
B37: 52 | C37: 5 | D37: 100#3 | E37: 60138#1|20#1 | F37: 3 | I37: 5000
B38: 70 | C38: 11 | D38: 1#1#500000 | E38: 6#2|14#1000000 | F38: 1 | G38: 10001
B39: 71 | C39: 11 | D39: 2#2#500000 | E39: 6#2|14#800000 | F39: 2 | G39: 10001
B40: 72 | C40: 11 | D40: 3#3#500000 | E40: 6#2|14#600000 | F40: 3 | G40: 10001
B41: 73 | C41: 11 | D41: 4#4#500000 | E41: 6#3|14#500000 | F41: 4 | G41: 10001
B42: 74 | C42: 11 | D42: 5#5#500000 | E42: 6#3|14#500000 | F42: 5 | G42: 10001
B43: 75 | C43: 11 | D43: 6#6#500000 | E43: 6#3|14#500000 | F43: 6 | G43: 10001
B44: 76 | C44: 11 | D44: 7#7#500000 | E44: 6#4|14#300000 | F44: 7 | G44: 10001
B45: 77 | C45: 11 | D45: 8#8#500000 | E45: 6#4|14#300000 | F45: 8 | G45: 10001
B46: 78 | C46: 11 | D46: 9#9#500000 | E46: 6#4|14#300000 | F46: 9 | G46: 10001
B47: 79 | C47: 11 | D47: 10#10#500000 | E47: 6#5|14#300000 | F47: 10 | G47: 10001
B48: 85 | C48: 12 | D48: 80000 | E48: 4#1000|3#5000|14#150000 | F48: 1 | G48: 10001
B49: 86 | C49: 12 | D49: 120000 | E49: 23#30|3#10000|14#200000 | F49: 2 | G49: 10001
B50: 87 | C50: 12 | D50: 150000 | E50: 19#5|12013#10|14#250000 | F50: 3 | G50: 10001
B51: 88 | C51: 12 | D51: 200000 | E51: 19#5|12013#10|14#300000 | F51: 4 | G51: 10001
B52: 89 | C52: 12 | D52: 250000 | E52: 19#10|12013#10|14#400000 | F52: 5 | G52: 10001
B53: 90 | C53: 12 | D53: 300000 | E53: 11003#50|12013#20|14#500000 | F53: 6 | G53: 10001
B54: 98 | C54: 13 | D54: 18 | E54: 1001#10000|19#1|16#200|14#1000000 | F54: 1 | G54: 10001
B55: 101 | C55: 14 | D55: 6#1 | E55: 14#200000|3#100000|4#250 | F55: 1 | G55: 10001 | K55: 连续充值天数：1
B56: 102 | C56: 14 | D56: 6#2 | E56: 14#400000|3#200000|19#2 | F56: 2 | G56: 10001 | K56: 连续充值天数：2
B57: 103 | C57: 14 | D57: 6#3 | E57: 14#600000|3#300000|80#8 | F57: 3 | G57: 10001 | K57: 连续充值天数：3
B58: 104 | C58: 14 | D58: 6#4 | E58: 14#800000|3#400000|60#8 | F58: 4 | G58: 10001 | K58: 连续充值天数：4
B59: 105 | C59: 14 | D59: 6#5 | E59: 14#1000000|3#500000|20#1 | F59: 5 | G59: 10001 | K59: 连续充值天数：5
B60: 106 | C60: 14 | D60: 6#6 | E60: 14#1200000|3#600000|81131#1 | F60: 6 | G60: 10001 | K60: 连续充值天数：6
B61: 107 | C61: 14 | D61: 6#7 | E61: 14#1400000|3#700000|12013#50 | F61: 7 | G61: 10001 | K61: 连续充值天数：7
B62: 108 | C62: 14 | D62: 6#8 | E62: 14#1600000|3#800000|4#500 | F62: 8 | G62: 10001 | K62: 连续充值天数：8
B63: 109 | C63: 14 | D63: 6#9 | E63: 14#1800000|3#900000|1001#3000 | F63: 9 | G63: 10001 | K63: 连续充值天数：9
B64: 110 | C64: 14 | D64: 6#10 | E64: 14#2000000|3#1000000|20#1 | F64: 10 | G64: 10001 | K64: 连续充值天数：10
B65: 111 | C65: 14 | D65: 6#11 | E65: 14#2200000|3#1100000|60#12 | F65: 11 | G65: 10001 | K65: 连续充值天数：11
B66: 112 | C66: 14 | D66: 6#12 | E66: 14#2400000|3#1200000|61#1 | F66: 12 | G66: 10001 | K66: 连续充值天数：12
B67: 113 | C67: 14 | D67: 6#13 | E67: 14#2600000|3#1300000|12013#50 | F67: 13 | G67: 10001 | K67: 连续充值天数：13
B68: 114 | C68: 14 | D68: 6#14 | E68: 14#2800000|3#1400000|66#500 | F68: 14 | G68: 10001 | K68: 连续充值天数：14
B69: 115 | C69: 14 | D69: 6#15 | E69: 14#3000000|3#1500000|81129#1 | F69: 15 | G69: 10001 | K69: 连续充值天数：15
B70: 121 | C70: 1601 | D70: 0|1 | E70: 11028#5|60#1|3#50000 | F70: 1 | G70: 10001 | K70: 关卡极速探索次数：1 | L70: 26082
B71: 122 | C71: 1601 | D71: 0|4 | E71: 11028#5|60#1|3#50000 | F71: 2 | G71: 10001 | K71: 关卡极速探索次数：4 | L71: 26082
B72: 123 | C72: 1601 | D72: 0|8 | E72: 11028#5|60#1|3#50000 | F72: 3 | G72: 10001 | K72: 关卡极速探索次数：8 | L72: 26082
B73: 124 | C73: 1601 | D73: 0|14 | E73: 11028#5|60#2|3#100000 | F73: 4 | G73: 10001 | K73: 关卡极速探索次数：14 | L73: 26082
B74: 125 | C74: 1601 | D74: 0|22 | E74: 11028#5|60#3|3#100000 | F74: 5 | G74: 10001 | K74: 关卡极速探索次数：22 | L74: 26082
B75: 126 | C75: 1601 | D75: 0|28 | E75: 11028#5|60#4|3#100000 | F75: 6 | G75: 10001 | K75: 关卡极速探索次数：28 | L75: 26082
B76: 127 | C76: 1601 | D76: 0|36 | E76: 11028#5|60#5|3#150000 | F76: 7 | G76: 10001 | K76: 关卡极速探索次数：36 | L76: 26082
B77: 128 | C77: 1601 | D77: 0|42 | E77: 11028#5|60#6|3#150000 | F77: 8 | G77: 10001 | K77: 关卡极速探索次数：42 | L77: 26082
B78: 129 | C78: 1601 | D78: 0|50 | E78: 11028#5|60#7|3#200000 | F78: 9 | G78: 10001 | K78: 关卡极速探索次数：50 | L78: 26082
B79: 130 | C79: 1601 | D79: 0|56 | E79: 11028#5|60#8|3#200000 | F79: 10 | G79: 10001 | K79: 关卡极速探索次数：56 | L79: 26082
B80: 135 | C80: 1701 | D80: 0|10 | E80: 4#100|60#3 | F80: 1 | G80: 10001 | K80: 竞技场挑战次数：10 | L80: 8001
B81: =B80+1 -> 136 | C81: 1701 | D81: 0|20 | E81: 4#200|60#3 | F81: 2 | G81: 10001 | K81: 竞技场挑战次数：20 | L81: 8001
B82: =B81+1 -> 137 | C82: 1701 | D82: 0|30 | E82: 4#300|60#3 | F82: 3 | G82: 10001 | K82: 竞技场挑战次数：30 | L82: 8001
B83: 138 | C83: 1701 | D83: 0|40 | E83: 4#400|60#3 | F83: 4 | G83: 10001 | K83: 竞技场挑战次数：40 | L83: 8001
B84: 139 | C84: 1701 | D84: 0|50 | E84: 4#500|60#3 | F84: 5 | G84: 10001 | K84: 竞技场挑战次数：50 | L84: 8001
B85: 140 | C85: 1701 | D85: 0|60 | E85: 4#600|60#3 | F85: 6 | G85: 10001 | K85: 竞技场挑战次数：60 | L85: 8001
B86: 141 | C86: 1701 | D86: 0|70 | E86: 4#700|60#3 | F86: 7 | G86: 10001 | K86: 竞技场挑战次数：70 | L86: 8001
B87: 142 | C87: 1701 | D87: 0|80 | E87: 4#800|60#3 | F87: 8 | G87: 10001 | K87: 竞技场挑战次数：80 | L87: 8001
B88: 143 | C88: 1701 | D88: 0|90 | E88: 4#900|60#3 | F88: 9 | G88: 10001 | K88: 竞技场挑战次数：90 | L88: 8001
B89: 144 | C89: 1701 | D89: 0|100 | E89: 4#1000|60#3 | F89: 10 | G89: 10001 | K89: 竞技场挑战次数：100 | L89: 8001
B90: 150 | C90: 1801 | D90: 5|1 | E90: 14#30000|3#1000 | F90: 1 | G90: 10001 | K90: 进阶5星猎妖师个数：1 | L90: 22001
B91: =B90+1 -> 151 | C91: 1801 | D91: 5|3 | E91: 14#50000|3#3000 | F91: 2 | G91: 10001 | K91: 进阶5星猎妖师个数：3 | L91: 22001
B92: =B91+1 -> 152 | C92: 1801 | D92: 5|5 | E92: 14#80000|3#5000 | F92: 3 | G92: 10001 | K92: 进阶5星猎妖师个数：5 | L92: 22001
B93: 153 | C93: 1801 | D93: 5|8 | E93: 14#100000|3#8000 | F93: 4 | G93: 10001 | K93: 进阶5星猎妖师个数：8 | L93: 22001
B94: 154 | C94: 1801 | D94: 6|1 | E94: 14#150000|3#10000 | F94: 5 | G94: 10001 | K94: 进阶6星猎妖师个数：1 | L94: 22001
B95: 155 | C95: 1801 | D95: 6|3 | E95: 14#250000|3#12000 | F95: 6 | G95: 10001 | K95: 进阶6星猎妖师个数：3 | L95: 22001
B96: 156 | C96: 1801 | D96: 6|5 | E96: 14#400000|3#15000 | F96: 7 | G96: 10001 | K96: 进阶6星猎妖师个数：5 | L96: 22001
B97: 157 | C97: 1801 | D97: 7|1 | E97: 14#500000|3#20000 | F97: 8 | G97: 10001 | K97: 进阶7星猎妖师个数：1 | L97: 22001
B98: 158 | C98: 1801 | D98: 7|2 | E98: 14#1000000|3#30000 | F98: 9 | G98: 10001 | K98: 进阶7星猎妖师个数：2 | L98: 22001
B99: 159 | C99: 1801 | D99: 8|1 | E99: 14#1500000|3#50000|20#10 | F99: 10 | G99: 10001 | K99: 进阶8星猎妖师个数：1 | L99: 22001
B100: 165 | C100: 1901 | D100: 4|10 | E100: 19#2|60#1|3#5000 | F100: 1 | G100: 10001 | K100: 获得10个紫色装备 | L100: 26078
B101: 166 | C101: 1901 | D101: 4|15 | E101: 19#2|60#1|3#5000 | F101: 2 | G101: 10001 | K101: 获得15个紫色装备 | L101: 26078
B102: 167 | C102: 1901 | D102: 4|18 | E102: 19#2|60#1|3#5000 | F102: 3 | G102: 10001 | K102: 获得18个紫色装备 | L102: 26078
B103: 168 | C103: 1901 | D103: 4|20 | E103: 19#2|60#2|3#10000 | F103: 4 | G103: 10001 | K103: 获得20个紫色装备 | L103: 26078
B104: 169 | C104: 1901 | D104: 4|24 | E104: 19#2|60#2|3#10000 | F104: 5 | G104: 10001 | K104: 获得24个紫色装备 | L104: 26078
B105: 170 | C105: 1901 | D105: 5|4 | E105: 19#2|60#4|3#10000 | F105: 6 | G105: 10001 | K105: 获得4个橙色装备 | L105: 26078
B106: 171 | C106: 1901 | D106: 5|8 | E106: 19#2|60#5|3#15000 | F106: 7 | G106: 10001 | K106: 获得8个橙色装备 | L106: 26078
B107: 172 | C107: 1901 | D107: 5|4 | E107: 19#2|60#6|3#15000 | F107: 8 | G107: 10001 | K107: 获得4个橙色装备 | L107: 26078
B108: 173 | C108: 1901 | D108: 5|8 | E108: 19#2|60#7|3#20000 | F108: 9 | G108: 10001 | K108: 获得8个橙色装备 | L108: 26078
B109: 174 | C109: 1901 | D109: 5|12 | E109: 19#2|60#8|3#20000 | F109: 10 | G109: 10001 | K109: 获得12个橙色装备 | L109: 26078
B110: 180 | C110: 2001 | D110: 0|1 | E110: 11012#5|60#1|3#50000 | F110: 1 | G110: 10001 | K110: 累计点金次数：1 | L110: 30002
B111: 181 | C111: 2001 | D111: 0|5 | E111: 11012#5|60#1|3#50000 | F111: 2 | G111: 10001 | K111: 累计点金次数：5 | L111: 30002
B112: 182 | C112: 2001 | D112: 0|10 | E112: 11012#5|60#1|3#50000 | F112: 3 | G112: 10001 | K112: 累计点金次数：10 | L112: 30002
B113: 183 | C113: 2001 | D113: 0|20 | E113: 11012#5|60#2|3#100000 | F113: 4 | G113: 10001 | K113: 累计点金次数：20 | L113: 30002
B114: 184 | C114: 2001 | D114: 0|30 | E114: 11012#5|60#3|3#100000 | F114: 5 | G114: 10001 | K114: 累计点金次数：30 | L114: 30002
B115: 185 | C115: 2001 | D115: 0|40 | E115: 11012#5|60#4|3#100000 | F115: 6 | G115: 10001 | K115: 累计点金次数：40 | L115: 30002
B116: 186 | C116: 2001 | D116: 0|50 | E116: 11012#5|60#5|3#150000 | F116: 7 | G116: 10001 | K116: 累计点金次数：50 | L116: 30002
B117: 187 | C117: 2001 | D117: 0|60 | E117: 11012#5|60#6|3#150000 | F117: 8 | G117: 10001 | K117: 累计点金次数：60 | L117: 30002
B118: 188 | C118: 2001 | D118: 0|70 | E118: 11012#10|60#7|3#200000 | F118: 9 | G118: 10001 | K118: 累计点金次数：70 | L118: 30002
B119: 195 | C119: 2101 | D119: 0|5 | E119: 21#2|14#20000 | F119: 1 | G119: 10001 | K119: 挑战剧情和精英副本达到：5 | L119: 1008
B120: 196 | C120: 2101 | D120: 0|10 | E120: 21#2|14#40000 | F120: 2 | G120: 10001 | K120: 挑战剧情和精英副本达到：10 | L120: 1008
B121: 197 | C121: 2101 | D121: 0|15 | E121: 21#2|14#60000 | F121: 3 | G121: 10001 | K121: 挑战剧情和精英副本达到：15 | L121: 1008
B122: 198 | C122: 2101 | D122: 0|20 | E122: 21#4|14#90000 | F122: 4 | G122: 10001 | K122: 挑战剧情和精英副本达到：20 | L122: 1008
B123: 199 | C123: 2101 | D123: 0|25 | E123: 21#4|14#120000 | F123: 5 | G123: 10001 | K123: 挑战剧情和精英副本达到：25 | L123: 1008
B124: 200 | C124: 2101 | D124: 0|30 | E124: 21#4|14#150000 | F124: 6 | G124: 10001 | K124: 挑战剧情和精英副本达到：30 | L124: 1008
B125: 201 | C125: 2101 | D125: 0|35 | E125: 21#5|14#190000 | F125: 7 | G125: 10001 | K125: 挑战剧情和精英副本达到：35 | L125: 1008
B126: 202 | C126: 2101 | D126: 0|40 | E126: 21#5|14#230000 | F126: 8 | G126: 10001 | K126: 挑战剧情和精英副本达到：40 | L126: 1008
B127: 203 | C127: 2101 | D127: 0|45 | E127: 21#5|14#270000 | F127: 9 | G127: 10001 | K127: 挑战剧情和精英副本达到：45 | L127: 1008
B128: 204 | C128: 2101 | D128: 0|50 | E128: 21#7|14#350000 | F128: 10 | G128: 10001 | K128: 挑战剧情和精英副本达到：50 | L128: 1008
B129: 210 | C129: 22 | D129: 0|500 | E129: 19#2|60#1|3#5000 | F129: 1 | G129: 10001 | K129: 累计消耗体力：500 | L129: 26078
B130: 211 | C130: 22 | D130: 0|1000 | E130: 19#2|60#1|3#5000 | F130: 2 | G130: 10001 | K130: 累计消耗体力：1000 | L130: 26078
B131: 212 | C131: 22 | D131: 0|2000 | E131: 19#2|60#1|3#5000 | F131: 3 | G131: 10001 | K131: 累计消耗体力：2000 | L131: 26078
B132: 213 | C132: 22 | D132: 0|3000 | E132: 19#2|60#2|3#10000 | F132: 4 | G132: 10001 | K132: 累计消耗体力：3000 | L132: 26078
B133: 214 | C133: 22 | D133: 0|3500 | E133: 19#2|60#2|3#10000 | F133: 5 | G133: 10001 | K133: 累计消耗体力：3500 | L133: 26078
B134: 215 | C134: 22 | D134: 0|4000 | E134: 19#2|60#4|3#10000 | F134: 6 | G134: 10001 | K134: 累计消耗体力：4000 | L134: 26078
B135: 216 | C135: 22 | D135: 0|4500 | E135: 19#2|60#5|3#15000 | F135: 7 | G135: 10001 | K135: 累计消耗体力：4500 | L135: 26078
B136: 217 | C136: 22 | D136: 0|5000 | E136: 19#2|60#6|3#15000 | F136: 8 | G136: 10001 | K136: 累计消耗体力：5000 | L136: 26078
B137: 218 | C137: 22 | D137: 0|5000 | E137: 19#2|60#7|3#20000 | F137: 9 | G137: 10001 | K137: 累计消耗体力：5000 | L137: 26078
B138: 219 | C138: 22 | D138: 0|5000 | E138: 19#2|60#8|3#20000 | F138: 10 | G138: 10001 | K138: 累计消耗体力：5000 | L138: 26078
B139: 240 | C139: 3701 | D139: 4|1 | E139: 19#2|60#1|3#5000 | F139: 1 | G139: 10001 | K139: 法宝进阶到4星的数量为：1 | L139: 1010
B140: 241 | C140: 3701 | D140: 5|1 | E140: 19#2|60#1|3#5000 | F140: 2 | G140: 10001 | K140: 法宝进阶到5星的数量为：1 | L140: 1010
B141: 242 | C141: 3701 | D141: 5|3 | E141: 19#2|60#1|3#5000 | F141: 3 | G141: 10001 | K141: 法宝进阶到5星的数量为：3 | L141: 1010
B142: 243 | C142: 3701 | D142: 5|5 | E142: 19#2|60#2|3#10000 | F142: 4 | G142: 10001 | K142: 法宝进阶到5星的数量为：5 | L142: 1010
B143: 244 | C143: 3701 | D143: 5|8 | E143: 19#2|60#2|3#10000 | F143: 5 | G143: 10001 | K143: 法宝进阶到5星的数量为：8 | L143: 1010
B144: 245 | C144: 3701 | D144: 6|1 | E144: 19#2|60#4|3#10000 | F144: 6 | G144: 10001 | K144: 法宝进阶到6星的数量为：1 | L144: 1010
B145: 246 | C145: 3701 | D145: 6|2 | E145: 19#2|60#5|3#15000 | F145: 7 | G145: 10001 | K145: 法宝进阶到6星的数量为：2 | L145: 1010
B146: 247 | C146: 3701 | D146: 6|3 | E146: 19#2|60#6|3#15000 | F146: 8 | G146: 10001 | K146: 法宝进阶到6星的数量为：3 | L146: 1010
B147: 248 | C147: 3701 | D147: 6|3 | E147: 19#2|60#7|3#20000 | F147: 9 | G147: 10001 | K147: 法宝进阶到6星的数量为：3 | L147: 1010
B148: 249 | C148: 3701 | D148: 6|3 | E148: 19#2|60#8|3#20000 | F148: 10 | G148: 10001 | K148: 法宝进阶到6星的数量为：3 | L148: 1010
B149: 255 | C149: 3801 | D149: 5|1 | E149: 19#2|60#1|3#5000 | F149: 1 | G149: 10001 | K149: 魂印等级提升至5级的个数为：1 | L149: 46001
B150: 256 | C150: 3801 | D150: 5|2 | E150: 19#2|60#1|3#5000 | F150: 2 | G150: 10001 | K150: 魂印等级提升至5级的个数为：2 | L150: 46001
B151: 257 | C151: 3801 | D151: 6|1 | E151: 19#2|60#1|3#5000 | F151: 3 | G151: 10001 | K151: 魂印等级提升至6级的个数为：1 | L151: 46001
B152: 258 | C152: 3801 | D152: 6|2 | E152: 19#2|60#2|3#10000 | F152: 4 | G152: 10001 | K152: 魂印等级提升至6级的个数为：2 | L152: 46001
B153: 259 | C153: 3801 | D153: 6|3 | E153: 19#2|60#2|3#10000 | F153: 5 | G153: 10001 | K153: 魂印等级提升至6级的个数为：3 | L153: 46001
B154: 260 | C154: 3801 | D154: 7|1 | E154: 19#2|60#4|3#10000 | F154: 6 | G154: 10001 | K154: 魂印等级提升至7级的个数为：1 | L154: 46001
B155: 261 | C155: 3801 | D155: 7|2 | E155: 19#2|60#5|3#15000 | F155: 7 | G155: 10001 | K155: 魂印等级提升至7级的个数为：2 | L155: 46001
B156: 262 | C156: 3801 | D156: 7|3 | E156: 19#2|60#6|3#15000 | F156: 8 | G156: 10001 | K156: 魂印等级提升至7级的个数为：3 | L156: 46001
B157: 263 | C157: 3801 | D157: 7|3 | E157: 19#2|60#7|3#20000 | F157: 9 | G157: 10001 | K157: 魂印等级提升至7级的个数为：3 | L157: 46001
B158: 264 | C158: 3801 | D158: 7|3 | E158: 19#2|60#8|3#20000 | F158: 10 | G158: 10001 | K158: 魂印等级提升至7级的个数为：3 | L158: 46001
B159: 270 | C159: 4601 | D159: 4|10 | E159: 19#2|16#100 | F159: 1 | G159: 10001 | K159: 接取紫色品质任务次数为：10 | L159: 60001
B160: =B159+1 -> 271 | C160: 4601 | D160: 5|8 | E160: 19#3|16#100 | F160: 2 | G160: 10001 | K160: 接取橙色品质任务次数为：8 | L160: 60001
B161: =B160+1 -> 272 | C161: 4601 | D161: 6|3 | E161: 20#1|16#200 | F161: 3 | G161: 10001 | K161: 接取红色品质任务次数为：3 | L161: 60001
B162: 273 | C162: 4601 | D162: 4|20 | E162: 19#2|16#100 | F162: 4 | G162: 10001 | K162: 接取紫色品质任务次数为：20 | L162: 60001
B163: 274 | C163: 4601 | D163: 5|15 | E163: 19#3|16#100 | F163: 5 | G163: 10001 | K163: 接取橙色品质任务次数为：15 | L163: 60001
B164: 275 | C164: 4601 | D164: 6|7 | E164: 20#2|16#200 | F164: 6 | G164: 10001 | K164: 接取红色品质任务次数为：7 | L164: 60001
B165: 276 | C165: 4601 | D165: 4|30 | E165: 19#2|16#100 | F165: 7 | G165: 10001 | K165: 接取紫色品质任务次数为：30 | L165: 60001
B166: 277 | C166: 4601 | D166: 5|20 | E166: 19#3|16#100 | F166: 8 | G166: 10001 | K166: 接取橙色品质任务次数为：20 | L166: 60001
B167: 278 | C167: 4601 | D167: 6|10 | E167: 20#3|16#200 | F167: 9 | G167: 10001 | K167: 接取红色品质任务次数为：10 | L167: 60001
B168: 290 | C168: 4701 | D168: 1|5 | E168: 19#1|3#2000 | F168: 1 | G168: 10001 | K168: 幸运探宝次数达到：5 | L168: 1027
B169: =B168+1 -> 291 | C169: 4701 | D169: 1|15 | E169: 19#1|3#5000 | F169: 2 | G169: 10001 | K169: 幸运探宝次数达到：15 | L169: 1027
B170: =B169+1 -> 292 | C170: 4701 | D170: 1|30 | E170: 19#2|3#8000 | F170: 3 | G170: 10001 | K170: 幸运探宝次数达到：30 | L170: 1027
B171: 293 | C171: 4701 | D171: 1|60 | E171: 19#2|3#11000 | F171: 4 | G171: 10001 | K171: 幸运探宝次数达到：60 | L171: 1028
B172: 294 | C172: 4701 | D172: 1|75 | E172: 19#2|3#14000 | F172: 5 | G172: 10001 | K172: 幸运探宝次数达到：75 | L172: 1027
B173: 295 | C173: 4701 | D173: 1|90 | E173: 19#3|3#18000 | F173: 6 | G173: 10001 | K173: 幸运探宝次数达到：90 | L173: 1027
B174: 296 | C174: 4701 | D174: 1|120 | E174: 19#3|3#22000 | F174: 7 | G174: 10001 | K174: 幸运探宝次数达到：120 | L174: 1027
B175: 297 | C175: 4701 | D175: 1|150 | E175: 19#3|3#26000 | F175: 8 | G175: 10001 | K175: 幸运探宝次数达到：150 | L175: 1028
B176: 298 | C176: 4701 | D176: 1|180 | E176: 19#3|3#30000 | F176: 9 | G176: 10001 | K176: 幸运探宝次数达到：180 | L176: 1027
B177: 310 | C177: 4801 | D177: 0|10 | E177: 12012#40|21#3 | F177: 1 | G177: 10001 | K177: 群英征募累计次数：10 | L177: 1001
B178: =B177+1 -> 311 | C178: 4801 | D178: 0|30 | E178: 12006#40|12007#40 | F178: 2 | G178: 10001 | K178: 群英征募累计次数：30 | L178: 1001
B179: =B178+1 -> 312 | C179: 4801 | D179: 0|50 | E179: 12013#50|21#3 | F179: 3 | G179: 10001 | K179: 群英征募累计次数：50 | L179: 1001
B180: =B179+1 -> 313 | C180: 4801 | D180: 0|100 | E180: 14027#50|14035#50 | F180: 4 | G180: 10001 | K180: 群英征募累计次数：100 | L180: 1001
B181: =B180+1 -> 314 | C181: 4801 | D181: 0|150 | E181: 11022#50|21#3 | F181: 5 | G181: 10001 | K181: 群英征募累计次数：150 | L181: 1001
B182: =B181+1 -> 315 | C182: 4801 | D182: 0|300 | E182: 11007#50|21#5 | F182: 6 | G182: 10001 | K182: 群英征募累计次数：300 | L182: 1001
B183: 330 | C183: 4901 | D183: 0|10 | E183: 60#3|16#100 | F183: 1 | G183: 10001 | K183: 秘宝轩累计招募次数达到：10 | L183: 21001
B184: =B183+1 -> 331 | C184: 4901 | D184: 0|20 | E184: 60#3|16#100 | F184: 2 | G184: 10001 | K184: 秘宝轩累计招募次数达到：20 | L184: 21001
B185: =B184+1 -> 332 | C185: 4901 | D185: 0|30 | E185: 60#3|16#100 | F185: 3 | G185: 10001 | K185: 秘宝轩累计招募次数达到：30 | L185: 21001
B186: 333 | C186: 4901 | D186: 0|45 | E186: 61#1|14#100000 | F186: 4 | G186: 10001 | K186: 秘宝轩累计招募次数达到：45 | L186: 21001
B187: 334 | C187: 4901 | D187: 0|60 | E187: 60#4|16#100 | F187: 5 | G187: 10001 | K187: 秘宝轩累计招募次数达到：60 | L187: 21001
B188: 335 | C188: 4901 | D188: 0|75 | E188: 60#4|16#100 | F188: 6 | G188: 10001 | K188: 秘宝轩累计招募次数达到：75 | L188: 21001
B189: 336 | C189: 4901 | D189: 0|95 | E189: 61#2|16#200 | F189: 7 | G189: 10001 | K189: 秘宝轩累计招募次数达到：95 | L189: 21001
B190: 337 | C190: 4901 | D190: 0|115 | E190: 60#5|14#200000 | F190: 8 | G190: 10001 | K190: 秘宝轩累计招募次数达到：115 | L190: 21001
B191: 338 | C191: 4901 | D191: 0|135 | E191: 60#5|16#200 | F191: 9 | G191: 10001 | K191: 秘宝轩累计招募次数达到：135 | L191: 21001
B192: 339 | C192: 4901 | D192: 0|160 | E192: 61#3|16#300 | F192: 10 | G192: 10001 | K192: 秘宝轩累计招募次数达到：160 | L192: 21001
B193: 500 | C193: 24 | D193: 15 | E193: 19#4|1001#5000|14#500000 | F193: 1 | G193: 10001 | K193: 累计充值金额：15$ | L193: 27001 | M193: 限时活动累计充值
B194: 501 | C194: 24 | D194: 70 | E194: 12013#50|65#5000|14#2000000 | F194: 2 | G194: 10001 | K194: 累计充值金额：70$ | L194: 27001 | M194: 限时活动累计充值
B195: 502 | C195: 24 | D195: 100 | E195: 61#5|81115#1|14#4000000 | F195: 3 | G195: 10001 | K195: 累计充值金额：100$ | L195: 27001 | M195: 限时活动累计充值
B196: 600 | C196: 30 | D196: 100 | E196: 23#2 | F196: 100 | K196: 幸运探宝积分奖励
B197: 601 | C197: 30 | D197: 300 | E197: 80#3 | F197: 300 | K197: 幸运探宝积分奖励
B198: 602 | C198: 30 | D198: 500 | E198: 19#1 | F198: 500 | K198: 幸运探宝积分奖励
B199: 603 | C199: 30 | D199: 700 | E199: 61#1 | F199: 700 | K199: 幸运探宝积分奖励
B200: 604 | C200: 30 | D200: 1000 | E200: 81107#1 | F200: 1000 | K200: 幸运探宝积分奖励
... 488 more rows

Sheet Sheet1
A1: 16#100 | B1: 14#20000 | D1: =[1]!SUMSTRING(A1:B1,"|") -> 
A2: 16#100 | B2: 3#2000 | D2: =[1]!SUMSTRING(A2:B2,"|") -> 
A3: 16#100 | B3: 14#30000 | D3: =[1]!SUMSTRING(A3:B3,"|") -> 
A4: 16#100 | B4: 3#5000 | D4: =[1]!SUMSTRING(A4:B4,"|") -> 
A5: 16#100 | B5: 14#50000 | D5: =[1]!SUMSTRING(A5:B5,"|") -> 
A6: 16#100 | B6: 3#5000 | D6: =[1]!SUMSTRING(A6:B6,"|") -> 
A7: 14#100000 | B7: 3#5000 | D7: =[1]!SUMSTRING(A7:B7,"|") -> 
A8: 2#200 | B8: 4#500 | C8: 14#100000 | D8: =[1]!SUMSTRING(A8:B8,"|") -> 
A9: 3#10000 | B9: 14#100000 | D9: =[1]!SUMSTRING(A9:B9,"|") -> 
A10: 19#10 | B10: 4#600 | C10: 3#10000 | D10: =[1]!SUMSTRING(A10:B10,"|") -> 
A11: 4#600 | B11: 19#10 | C11: 14#151500 | D11: =[1]!SUMSTRING(A11:B11,"|") -> 
A12: 19#10 | B12: 4#700 | C12: 3#14700 | D12: =[1]!SUMSTRING(A12:B12,"|") -> 

Sheet 连续充值奖励
C2: 连续充值 | D2: 道具 | F2: 数量 | H2: 道具 | J2: 数量 | L2: 道具 | N2: 数量 | Q2: 价值 | T2: 综合 | W2: 统计 | Y2: 价值
C3: 第1天 | D3: 聚灵神戒 | E3: 19 | F3: 1 | G3: =E3&"#"&F3 -> 19#1 | H3: 金币 | I3: 14 | J3: 10000 | K3: =I3&"#"&J3 -> 14#10000 | L3: 成长护符 | M3: 3 | N3: 300 | O3: =M3&"#"&N3 -> 3#300 | P3: =_xlfn.TEXTJOIN("|",TRUE,G3,O3,K3) -> 19#1|3#300|14#10000 | Q3: =VLOOKUP(D3,[2]Sheet1!$A:$E,5,FALSE)*F3 ->  | R3: =VLOOKUP(H3,[2]Sheet1!$A:$E,5,FALSE)*J3 ->  | S3: =VLOOKUP(L3,[2]Sheet1!$A:$E,5,FALSE)*N3 ->  | T3: =Q3+R3+S3 ->  | W3: 金币 | X3: =SUM(J3:J18) -> 150000 | Y3: =VLOOKUP(W3,[2]Sheet1!$A:$E,5,FALSE)*X3 -> 
C4: 第2天 | D4: 妖晶 | E4: 16 | F4: 100 | G4: =E4&"#"&F4 -> 16#100 | H4: 金币 | I4: 14 | J4: 10000 | K4: =I4&"#"&J4 -> 14#10000 | L4: 成长护符 | M4: 3 | N4: 300 | O4: 3#300 | P4: =_xlfn.TEXTJOIN("|",TRUE,G4,O4,K4) -> 16#100|3#300|14#10000 | Q4: =VLOOKUP(D4,[2]Sheet1!$A:$E,5,FALSE)*F4 ->  | R4: =VLOOKUP(H4,[2]Sheet1!$A:$E,5,FALSE)*J4 ->  | S4: =VLOOKUP(L4,[2]Sheet1!$A:$E,5,FALSE)*N4 ->  | W4: 成长护符 | X4: =SUM(N3:N17) -> 4500 | Y4: =VLOOKUP(W4,[2]Sheet1!$A:$E,5,FALSE)*X4 -> 
C5: 第3天 | D5: 灵丹 | E5: 5 | F5: 100 | G5: 5#100 | H5: 金币 | I5: 14 | J5: 10000 | K5: 14#10000 | L5: 成长护符 | M5: 3 | N5: 300 | O5: 3#300 | P5: 5#100|3#300|14#10000 | Q5: =VLOOKUP(D5,[2]Sheet1!$A:$E,5,FALSE)*F5 ->  | R5: =VLOOKUP(H5,[2]Sheet1!$A:$E,5,FALSE)*J5 ->  | S5: =VLOOKUP(L5,[2]Sheet1!$A:$E,5,FALSE)*N5 ->  | W5: 聚灵神戒 | X5: =F3+F9+F14 -> 3 | Y5: =VLOOKUP(W5,[2]Sheet1!$A:$E,5,FALSE)*X5 -> 
C6: 第4天 | D6: 铁矿石 | E6: 1001 | F6: 5000 | G6: 1001#5000 | H6: 金币 | I6: 14 | J6: 10000 | K6: 14#10000 | L6: 成长护符 | M6: 3 | N6: 300 | O6: 3#300 | P6: 1001#5000|3#300|14#10000 | Q6: =VLOOKUP(D6,[2]Sheet1!$A:$E,5,FALSE)*F6 ->  | R6: =VLOOKUP(H6,[2]Sheet1!$A:$E,5,FALSE)*J6 ->  | S6: =VLOOKUP(L6,[2]Sheet1!$A:$E,5,FALSE)*N6 ->  | W6: 妖魂魔戒 | X6: =F11 -> 1 | Y6: =VLOOKUP(W6,[2]Sheet1!$A:$E,5,FALSE)*X6 -> 
C7: 第5天 | D7: 妖晶 | E7: 16 | F7: 120 | G7: 16#120 | H7: 金币 | I7: 14 | J7: 10000 | K7: 14#10000 | L7: 成长护符 | M7: 3 | N7: 300 | O7: 3#300 | P7: 16#120|3#300|14#10000 | Q7: =VLOOKUP(D7,[2]Sheet1!$A:$E,5,FALSE)*F7 ->  | R7: =VLOOKUP(H7,[2]Sheet1!$A:$E,5,FALSE)*J7 ->  | S7: =VLOOKUP(L7,[2]Sheet1!$A:$E,5,FALSE)*N7 ->  | W7: 灵丹 | X7: =F5+F10 -> 220 | Y7: =VLOOKUP(W7,[2]Sheet1!$A:$E,5,FALSE)*X7 -> 
B8: 54109 | C8: 第6天 | D8: 紫色装备 | E8: 1555 | F8: 1 | G8: 1555#1 | H8: 金币 | I8: 14 | J8: 10000 | K8: 14#10000 | L8: 成长护符 | M8: 3 | N8: 300 | O8: 3#300 | P8: 1555#1|3#300|14#10000 | Q8: =VLOOKUP(D8,[2]Sheet1!$A:$E,5,FALSE)*F8 ->  | R8: =VLOOKUP(H8,[2]Sheet1!$A:$E,5,FALSE)*J8 ->  | S8: =VLOOKUP(L8,[2]Sheet1!$A:$E,5,FALSE)*N8 ->  | W8: 妖晶 | X8: =F4+F7+F13 -> 370 | Y8: =VLOOKUP(W8,[2]Sheet1!$A:$E,5,FALSE)*X8 -> 
C9: 第7天 | D9: 聚灵神戒 | E9: 19 | F9: 1 | G9: 19#1 | H9: 金币 | I9: 14 | J9: 10000 | K9: 14#10000 | L9: 成长护符 | M9: 3 | N9: 300 | O9: 3#300 | P9: 19#1|3#300|14#10000 | Q9: =VLOOKUP(D9,[2]Sheet1!$A:$E,5,FALSE)*F9 ->  | R9: =VLOOKUP(H9,[2]Sheet1!$A:$E,5,FALSE)*J9 ->  | S9: =VLOOKUP(L9,[2]Sheet1!$A:$E,5,FALSE)*N9 ->  | W9: 铁矿石 | X9: =F6 -> 5000 | Y9: =VLOOKUP(W9,[2]Sheet1!$A:$E,5,FALSE)*X9 -> 
C10: 第8天 | D10: 灵丹 | E10: 5 | F10: 120 | G10: 5#120 | H10: 金币 | I10: 14 | J10: 10000 | K10: 14#10000 | L10: 成长护符 | M10: 3 | N10: 300 | O10: 3#300 | P10: 5#120|3#300|14#10000 | Q10: =VLOOKUP(D10,[2]Sheet1!$A:$E,5,FALSE)*F10 ->  | R10: =VLOOKUP(H10,[2]Sheet1!$A:$E,5,FALSE)*J10 ->  | S10: =VLOOKUP(L10,[2]Sheet1!$A:$E,5,FALSE)*N10 ->  | W10: 紫色装备 | X10: =F11 -> 1 | Y10: =VLOOKUP(W10,[2]Sheet1!$A:$E,5,FALSE)*X10 -> 
C11: 第9天 | D11: 妖魂魔戒 | E11: 21 | F11: 1 | G11: 21#1 | H11: 金币 | I11: 14 | J11: 10000 | K11: 14#10000 | L11: 成长护符 | M11: 3 | N11: 300 | O11: 3#300 | P11: 21#1|3#300|14#10000 | Q11: =VLOOKUP(D11,[2]Sheet1!$A:$E,5,FALSE)*F11 ->  | R11: =VLOOKUP(H11,[2]Sheet1!$A:$E,5,FALSE)*J11 ->  | S11: =VLOOKUP(L11,[2]Sheet1!$A:$E,5,FALSE)*N11 ->  | W11: 5星角色碎片 | X11: =F17+F12+F15 -> 25 | Y11: =VLOOKUP(W11,[2]Sheet1!$A:$E,5,FALSE)*X11 -> 
C12: 第10天 | D12: 5星角色碎片 | E12: 12013 | F12: 5 | G12: 12013#5 | H12: 金币 | I12: 14 | J12: 10000 | K12: 14#10000 | L12: 成长护符 | M12: 3 | N12: 300 | O12: 3#300 | P12: 12013#5|3#300|14#10000 | Q12: =VLOOKUP(D12,[2]Sheet1!$A:$E,5,FALSE)*F12 ->  | R12: =VLOOKUP(H12,[2]Sheet1!$A:$E,5,FALSE)*J12 ->  | S12: =VLOOKUP(L12,[2]Sheet1!$A:$E,5,FALSE)*N12 ->  | W12: 橙色装备 | X12: 1 | Y12: =VLOOKUP(W12,[2]Sheet1!$A:$E,5,FALSE)*X12 -> 
C13: 第11天 | D13: 妖晶 | E13: 16 | F13: 150 | G13: 16#150 | H13: 金币 | I13: 14 | J13: 10000 | K13: 14#10000 | L13: 成长护符 | M13: 3 | N13: 300 | O13: 3#300 | P13: 16#150|3#300|14#10000 | Q13: =VLOOKUP(D13,[2]Sheet1!$A:$E,5,FALSE)*F13 ->  | R13: =VLOOKUP(H13,[2]Sheet1!$A:$E,5,FALSE)*J13 ->  | S13: =VLOOKUP(L13,[2]Sheet1!$A:$E,5,FALSE)*N13 -> 
C14: 第12天 | D14: 聚灵神戒 | E14: 19 | F14: 1 | G14: 19#1 | H14: 金币 | I14: 14 | J14: 10000 | K14: 14#10000 | L14: 成长护符 | M14: 3 | N14: 300 | O14: 3#300 | P14: 19#1|3#300|14#10000 | Q14: =VLOOKUP(D14,[2]Sheet1!$A:$E,5,FALSE)*F14 ->  | R14: =VLOOKUP(H14,[2]Sheet1!$A:$E,5,FALSE)*J14 ->  | S14: =VLOOKUP(L14,[2]Sheet1!$A:$E,5,FALSE)*N14 -> 
C15: 第13天 | D15: 5星角色碎片 | E15: 12013 | F15: 5 | G15: 12013#5 | H15: 金币 | I15: 14 | J15: 10000 | K15: 14#10000 | L15: 成长护符 | M15: 3 | N15: 300 | O15: 3#300 | P15: 12013#5|3#300|14#10000 | Q15: =VLOOKUP(D15,[2]Sheet1!$A:$E,5,FALSE)*F15 ->  | R15: =VLOOKUP(H15,[2]Sheet1!$A:$E,5,FALSE)*J15 ->  | S15: =VLOOKUP(L15,[2]Sheet1!$A:$E,5,FALSE)*N15 ->  | W15: 返利 | X15: 充值妖晶 | Y15: 获得妖晶
C16: 第14天 | D16: 橙色装备 | E16: 1556 | F16: 1 | G16: 1556#1 | H16: 金币 | I16: 14 | J16: 10000 | K16: 14#10000 | L16: 成长护符 | M16: 3 | N16: 300 | O16: 3#300 | P16: 1556#1|3#300|14#10000 | Q16: =VLOOKUP(D16,[2]Sheet1!$A:$E,5,FALSE)*F16 ->  | R16: =VLOOKUP(H16,[2]Sheet1!$A:$E,5,FALSE)*J16 ->  | S16: =VLOOKUP(L16,[2]Sheet1!$A:$E,5,FALSE)*N16 ->  | W16: =Y16/X16 ->  | X16: =60*15 -> 900 | Y16: =SUM(T3:T17) -> 
C17: 第15天 | D17: 5星角色碎片 | E17: 12013 | F17: 15 | G17: 12013#15 | H17: 金币 | I17: 14 | J17: 10000 | K17: 14#10000 | L17: 成长护符 | M17: 3 | N17: 300 | O17: 3#300 | P17: 12013#15|3#300|14#10000 | Q17: =VLOOKUP(D17,[2]Sheet1!$A:$E,5,FALSE)*F17 ->  | R17: =VLOOKUP(H17,[2]Sheet1!$A:$E,5,FALSE)*J17 ->  | S17: =VLOOKUP(L17,[2]Sheet1!$A:$E,5,FALSE)*N17 ->  | W17: =Y17/X17 ->  | X17: =120*15 -> 1800 | Y17: =SUM(T4:T18) -> 

Sheet 累计签到奖励
A1: 签到奖励 | C1: 活动类型
A2: 签到奖励养成材料、妖灵师碎片、抽卡券
M3: 投放总量统计 | O3: 价值
M4: 金币 | N4: =C6+C8+C13+C15+C20+C22+C27+C29+C34+C36 -> 33737 | O4: =VLOOKUP(M4,[2]Sheet1!$A:$E,5,FALSE)*N4 -> 
A5: 天数 | B5: 奖励 | C5: 数量 | F5: 价值 | M5: 成长护符 | N5: =C7+C14+C21+C28+C35 -> 16111 | O5: =VLOOKUP(M5,[2]Sheet1!$A:$E,5,FALSE)*N5 -> 
A6: 1 | B6: 金币 | C6: 10000 | D6: =VLOOKUP(B6,Sheet2!$A:$B,2,FALSE) -> 14 | E6: =D6&"#"&C6 -> 14#10000 | F6: =VLOOKUP(B6,[2]Sheet1!$A:$E,5,FALSE)*C6 ->  | M6: 梦魇妖壶 | N6: =C11+C18 -> 10005 | O6: =VLOOKUP(M6,[2]Sheet1!$A:$E,5,FALSE)*N6 -> 
A7: 2 | B7: 成长护符 | C7: 1000 | D7: =VLOOKUP(B7,Sheet2!$A:$B,2,FALSE) -> 3 | E7: =D7&"#"&C7 -> 3#1000 | F7: =VLOOKUP(B7,[2]Sheet1!$A:$E,5,FALSE)*C7 ->  | M7: 灵丹 | N7: =C10+C17+C24+C31 -> 21531 | O7: =VLOOKUP(M7,[2]Sheet1!$A:$E,5,FALSE)*N7 -> 
A8: 3 | B8: 聚灵神戒 | C8: 1 | D8: =VLOOKUP(B8,Sheet2!$A:$B,2,FALSE) -> 19 | E8: 19#1 | F8: =VLOOKUP(B8,[2]Sheet1!$A:$E,5,FALSE)*C8 ->  | M8: 铁矿石 | N8: =C16+C23+C30+C9 -> 10140 | O8: =VLOOKUP(M8,[2]Sheet1!$A:$E,5,FALSE)*N8 -> 
A9: 4 | B9: 灵丹 | C9: 50 | D9: =VLOOKUP(B9,Sheet2!$A:$B,2,FALSE) -> 5 | E9: 5#50 | F9: =VLOOKUP(B9,[2]Sheet1!$A:$E,5,FALSE)*C9 ->  | M9: 5星角色碎片 | N9: =C25+C32 -> 2050 | O9: =VLOOKUP(M9,[2]Sheet1!$A:$E,5,FALSE)*N9 -> 
A10: 5 | B10: 梦魇妖壶 | C10: 30 | D10: =VLOOKUP(B10,Sheet2!$A:$B,2,FALSE) -> 4 | E10: 4#30 | F10: =VLOOKUP(B10,[2]Sheet1!$A:$E,5,FALSE)*C10 ->  | M10: 聚灵神戒 | N10: =C12+C26 -> 16000 | O10: =VLOOKUP(M10,[2]Sheet1!$A:$E,5,FALSE)*N10 -> 
A11: 6 | B11: 金币 | C11: 10000 | D11: =VLOOKUP(B11,Sheet2!$A:$B,2,FALSE) -> 14 | E11: 14#10000 | F11: =VLOOKUP(B11,[2]Sheet1!$A:$E,5,FALSE)*C11 ->  | M11: 妖魂魔戒 | N11: =C19+C33 -> 120 | O11: =VLOOKUP(M11,[2]Sheet1!$A:$E,5,FALSE)*N11 -> 
A12: 7 | B12: 成长护符 | C12: 1000 | D12: =VLOOKUP(B12,Sheet2!$A:$B,2,FALSE) -> 3 | E12: 3#1000 | F12: =VLOOKUP(B12,[2]Sheet1!$A:$E,5,FALSE)*C12 -> 
A13: 8 | B13: 5星随机碎片 | C13: 5 | D13: =VLOOKUP(B13,Sheet2!$A:$B,2,FALSE) -> 12013 | E13: 12013#5 | F13: =VLOOKUP(B13,[2]Sheet1!$A:$E,5,FALSE)*C13 -> 
A14: 9 | B14: 妖魂魔戒 | C14: 1 | D14: =VLOOKUP(B14,Sheet2!$A:$B,2,FALSE) -> 21 | E14: 21#1 | F14: =VLOOKUP(B14,[2]Sheet1!$A:$E,5,FALSE)*C14 -> 
A15: 10 | B15: 梦魇妖壶 | C15: 30 | D15: =VLOOKUP(B15,Sheet2!$A:$B,2,FALSE) -> 4 | E15: 4#30 | F15: =VLOOKUP(B15,[2]Sheet1!$A:$E,5,FALSE)*C15 -> 
A16: 11 | B16: 金币 | C16: 10000 | D16: =VLOOKUP(B16,Sheet2!$A:$B,2,FALSE) -> 14 | E16: 14#10000 | F16: =VLOOKUP(B16,[2]Sheet1!$A:$E,5,FALSE)*C16 ->  | J16: 1 | K16: 2 | L16: 3 | M16: 4 | N16: 5 | O16: 6 | P16: 7
A17: 12 | B17: 成长护符 | C17: 1500 | D17: =VLOOKUP(B17,Sheet2!$A:$B,2,FALSE) -> 3 | E17: 3#1500 | F17: =VLOOKUP(B17,[2]Sheet1!$A:$E,5,FALSE)*C17 ->  | I17: 1 | J17: =B6 -> 金币 | K17: =B7 -> 成长护符 | L17: =B8 -> 聚灵神戒 | M17: =B9 -> 灵丹 | N17: =B10 -> 梦魇妖壶 | O17: =B11 -> 金币 | P17: =B12 -> 成长护符
A18: 13 | B18: 5星随机碎片 | C18: 5 | D18: =VLOOKUP(B18,Sheet2!$A:$B,2,FALSE) -> 12013 | E18: 12013#5 | F18: =VLOOKUP(B18,[2]Sheet1!$A:$E,5,FALSE)*C18 ->  | I18: =I17+7 -> 8 | J18: =B13 -> 5星随机碎片 | K18: =B14 -> 妖魂魔戒 | L18: =B15 -> 梦魇妖壶 | M18: =B16 -> 金币 | N18: =B17 -> 成长护符 | O18: =B18 -> 5星随机碎片 | P18: =B19 -> 灵丹
A19: 14 | B19: 灵丹 | C19: 100 | D19: =VLOOKUP(B19,Sheet2!$A:$B,2,FALSE) -> 5 | E19: 5#100 | F19: =VLOOKUP(B19,[2]Sheet1!$A:$E,5,FALSE)*C19 ->  | I19: 15 | J19: =B20 -> 梦魇妖壶 | K19: =B21 -> 金币 | L19: =B22 -> 成长护符 | M19: =B23 -> 5星随机碎片 | N19: =B24 -> 妖魂魔戒 | O19: =B25 -> 梦魇妖壶 | P19: =B26 -> 金币
A20: 15 | B20: 梦魇妖壶 | C20: 50 | D20: =VLOOKUP(B20,Sheet2!$A:$B,2,FALSE) -> 4 | E20: 4#50 | F20: =VLOOKUP(B20,[2]Sheet1!$A:$E,5,FALSE)*C20 ->  | I20: 22 | J20: =B27 -> 成长护符 | K20: =B28 -> 5星随机碎片 | L20: =B29 -> 灵丹 | M20: =B30 -> 梦魇妖壶 | N20: =B31 -> 金币 | O20: =B32 -> 成长护符 | P20: =B33 -> 5星随机碎片
A21: 16 | B21: 金币 | C21: 15000 | D21: =VLOOKUP(B21,Sheet2!$A:$B,2,FALSE) -> 14 | E21: 14#15000 | F21: =VLOOKUP(B21,[2]Sheet1!$A:$E,5,FALSE)*C21 ->  | I21: 29 | J21: =B34 -> 妖魂魔戒 | K21: =B35 -> 梦魇妖壶 | L21: =B36 -> 金币
A22: 17 | B22: 成长护符 | C22: 1500 | D22: =VLOOKUP(B22,Sheet2!$A:$B,2,FALSE) -> 3 | E22: 3#1500 | F22: =VLOOKUP(B22,[2]Sheet1!$A:$E,5,FALSE)*C22 -> 
A23: 18 | B23: 5星随机碎片 | C23: 10 | D23: =VLOOKUP(B23,Sheet2!$A:$B,2,FALSE) -> 12013 | E23: 12013#10 | F23: =VLOOKUP(B23,[2]Sheet1!$A:$E,5,FALSE)*C23 -> 
A24: 19 | B24: 妖魂魔戒 | C24: 1 | D24: =VLOOKUP(B24,Sheet2!$A:$B,2,FALSE) -> 21 | E24: 21#1 | F24: =VLOOKUP(B24,[2]Sheet1!$A:$E,5,FALSE)*C24 -> 
A25: 20 | B25: 梦魇妖壶 | C25: 50 | D25: =VLOOKUP(B25,Sheet2!$A:$B,2,FALSE) -> 4 | E25: 4#50 | F25: =VLOOKUP(B25,[2]Sheet1!$A:$E,5,FALSE)*C25 -> 
A26: 21 | B26: 金币 | C26: 15000 | D26: =VLOOKUP(B26,Sheet2!$A:$B,2,FALSE) -> 14 | E26: 14#15000 | F26: =VLOOKUP(B26,[2]Sheet1!$A:$E,5,FALSE)*C26 -> 
A27: 22 | B27: 成长护符 | C27: 2000 | D27: =VLOOKUP(B27,Sheet2!$A:$B,2,FALSE) -> 3 | E27: 3#2000 | F27: =VLOOKUP(B27,[2]Sheet1!$A:$E,5,FALSE)*C27 -> 
A28: 23 | B28: 5星随机碎片 | C28: 10 | D28: =VLOOKUP(B28,Sheet2!$A:$B,2,FALSE) -> 12013 | E28: 12013#10 | F28: =VLOOKUP(B28,[2]Sheet1!$A:$E,5,FALSE)*C28 -> 
A29: 24 | B29: 灵丹 | C29: 150 | D29: =VLOOKUP(B29,Sheet2!$A:$B,2,FALSE) -> 5 | E29: 5#150 | F29: =VLOOKUP(B29,[2]Sheet1!$A:$E,5,FALSE)*C29 -> 
A30: 25 | B30: 梦魇妖壶 | C30: 80 | D30: =VLOOKUP(B30,Sheet2!$A:$B,2,FALSE) -> 4 | E30: 4#80 | F30: =VLOOKUP(B30,[2]Sheet1!$A:$E,5,FALSE)*C30 -> 
A31: 26 | B31: 金币 | C31: 20000 | D31: =VLOOKUP(B31,Sheet2!$A:$B,2,FALSE) -> 14 | E31: 14#20000 | F31: =VLOOKUP(B31,[2]Sheet1!$A:$E,5,FALSE)*C31 -> 
A32: 27 | B32: 成长护符 | C32: 2000 | D32: =VLOOKUP(B32,Sheet2!$A:$B,2,FALSE) -> 3 | E32: 3#2000 | F32: =VLOOKUP(B32,[2]Sheet1!$A:$E,5,FALSE)*C32 -> 
A33: 28 | B33: 5星随机碎片 | C33: 20 | D33: =VLOOKUP(B33,Sheet2!$A:$B,2,FALSE) -> 12013 | E33: 12013#20 | F33: =VLOOKUP(B33,[2]Sheet1!$A:$E,5,FALSE)*C33 -> 
A34: 29 | B34: 妖魂魔戒 | C34: 1 | D34: =VLOOKUP(B34,Sheet2!$A:$B,2,FALSE) -> 21 | E34: 21#1 | F34: =VLOOKUP(B34,[2]Sheet1!$A:$E,5,FALSE)*C34 -> 
A35: 30 | B35: 梦魇妖壶 | C35: 100 | D35: =VLOOKUP(B35,Sheet2!$A:$B,2,FALSE) -> 4 | E35: 4#100 | F35: =VLOOKUP(B35,[2]Sheet1!$A:$E,5,FALSE)*C35 -> 
A36: 31 | B36: 金币 | C36: 20000 | D36: =VLOOKUP(B36,Sheet2!$A:$B,2,FALSE) -> 14 | E36: 14#20000 | F36: =VLOOKUP(B36,[2]Sheet1!$A:$E,5,FALSE)*C36 -> 

Sheet 达人系列
B2: 妖灵师进阶达人
C3: 内容 | D3: 奖励 | E3: 数量 | F3: 价值 | G3: 奖励 | H3: 数量 | I3: 价值 | J3: 奖励 | K3: 数量 | L3: 价值 | N3: 总价值 | Q3: 道具
C4: 合成5星英雄3个 | D4: 4星随机碎片 | E4: 10 | F4: =VLOOKUP(D4,[2]Sheet1!$A:$E,5,FALSE)*E4 ->  | G4: 金币 | H4: 10000 | I4: =VLOOKUP(G4,[2]Sheet1!$A:$E,5,FALSE)*H4 ->  | J4: 成长护符 | K4: 300 | L4: =VLOOKUP(J4,[2]Sheet1!$A:$E,5,FALSE)*K4 ->  | N4: =L4+I4+F4 ->  | P4: =R4&"|"&X4&"|"&U4 ->  | Q4: =ROUND(VLOOKUP(D4,[2]Sheet1!$A:$E,2,FALSE),0) ->  | R4: =Q4&"#"&E4 ->  | T4: =ROUND(VLOOKUP(G4,[2]Sheet1!$A:$E,2,FALSE),0) ->  | U4: =T4&"#"&H4 ->  | W4: =ROUND(VLOOKUP(J4,[2]Sheet1!$A:$E,2,FALSE),0) ->  | X4: =W4&"#"&K4 -> 
C5: 合成5星英雄4个 | D5: 4星随机碎片 | E5: 15 | F5: =VLOOKUP(D5,[2]Sheet1!$A:$E,5,FALSE)*E5 ->  | G5: 金币 | H5: 10000 | I5: =VLOOKUP(G5,[2]Sheet1!$A:$E,5,FALSE)*H5 ->  | J5: 成长护符 | K5: 300 | L5: =VLOOKUP(J5,[2]Sheet1!$A:$E,5,FALSE)*K5 ->  | N5: =L5+I5+F5 ->  | P5: =R5&"|"&X5&"|"&U5 ->  | Q5: =ROUND(VLOOKUP(D5,[2]Sheet1!$A:$E,2,FALSE),0) ->  | R5: =Q5&"#"&E5 ->  | T5: =ROUND(VLOOKUP(G5,[2]Sheet1!$A:$E,2,FALSE),0) ->  | U5: =T5&"#"&H5 ->  | W5: =ROUND(VLOOKUP(J5,[2]Sheet1!$A:$E,2,FALSE),0) ->  | X5: =W5&"#"&K5 -> 
C6: 合成5星英雄5个 | D6: 4星随机碎片 | E6: 25 | F6: =VLOOKUP(D6,[2]Sheet1!$A:$E,5,FALSE)*E6 ->  | G6: 金币 | H6: 10000 | I6: =VLOOKUP(G6,[2]Sheet1!$A:$E,5,FALSE)*H6 ->  | J6: 成长护符 | K6: 300 | L6: =VLOOKUP(J6,[2]Sheet1!$A:$E,5,FALSE)*K6 ->  | Q6: =ROUND(VLOOKUP(D6,[2]Sheet1!$A:$E,2,FALSE),0) ->  | T6: =ROUND(VLOOKUP(G6,[2]Sheet1!$A:$E,2,FALSE),0) ->  | W6: =ROUND(VLOOKUP(J6,[2]Sheet1!$A:$E,2,FALSE),0) -> 
C7: 合成5星英雄6个 | D7: 4星随机碎片 | E7: 30 | F7: =VLOOKUP(D7,[2]Sheet1!$A:$E,5,FALSE)*E7 ->  | G7: 金币 | H7: 10000 | I7: =VLOOKUP(G7,[2]Sheet1!$A:$E,5,FALSE)*H7 ->  | J7: 成长护符 | K7: 300 | L7: =VLOOKUP(J7,[2]Sheet1!$A:$E,5,FALSE)*K7 ->  | Q7: =ROUND(VLOOKUP(D7,[2]Sheet1!$A:$E,2,FALSE),0) ->  | T7: =ROUND(VLOOKUP(G7,[2]Sheet1!$A:$E,2,FALSE),0) ->  | W7: =ROUND(VLOOKUP(J7,[2]Sheet1!$A:$E,2,FALSE),0) -> 
C8: 合成6星英雄1个 | D8: 5星随机碎片 | E8: 10 | F8: =VLOOKUP(D8,[2]Sheet1!$A:$E,5,FALSE)*E8 ->  | G8: 金币 | H8: 20000 | I8: =VLOOKUP(G8,[2]Sheet1!$A:$E,5,FALSE)*H8 ->  | J8: 成长护符 | K8: 600 | L8: =VLOOKUP(J8,[2]Sheet1!$A:$E,5,FALSE)*K8 ->  | Q8: =ROUND(VLOOKUP(D8,[2]Sheet1!$A:$E,2,FALSE),0) ->  | T8: =ROUND(VLOOKUP(G8,[2]Sheet1!$A:$E,2,FALSE),0) ->  | W8: =ROUND(VLOOKUP(J8,[2]Sheet1!$A:$E,2,FALSE),0) -> 
C9: 合成6星英雄2个 | D9: 5星随机碎片 | E9: 15 | F9: =VLOOKUP(D9,[2]Sheet1!$A:$E,5,FALSE)*E9 ->  | G9: 金币 | H9: 20000 | I9: =VLOOKUP(G9,[2]Sheet1!$A:$E,5,FALSE)*H9 ->  | J9: 成长护符 | K9: 600 | L9: =VLOOKUP(J9,[2]Sheet1!$A:$E,5,FALSE)*K9 ->  | Q9: =ROUND(VLOOKUP(D9,[2]Sheet1!$A:$E,2,FALSE),0) ->  | T9: =ROUND(VLOOKUP(G9,[2]Sheet1!$A:$E,2,FALSE),0) ->  | W9: =ROUND(VLOOKUP(J9,[2]Sheet1!$A:$E,2,FALSE),0) -> 
C10: 合成6星英雄3个 | D10: 5星随机碎片 | E10: 25 | F10: =VLOOKUP(D10,[2]Sheet1!$A:$E,5,FALSE)*E10 ->  | G10: 金币 | H10: 20000 | I10: =VLOOKUP(G10,[2]Sheet1!$A:$E,5,FALSE)*H10 ->  | J10: 成长护符 | K10: 600 | L10: =VLOOKUP(J10,[2]Sheet1!$A:$E,5,FALSE)*K10 ->  | Q10: =ROUND(VLOOKUP(D10,[2]Sheet1!$A:$E,2,FALSE),0) ->  | T10: =ROUND(VLOOKUP(G10,[2]Sheet1!$A:$E,2,FALSE),0) ->  | W10: =ROUND(VLOOKUP(J10,[2]Sheet1!$A:$E,2,FALSE),0) -> 
C11: 合成7星英雄1个 | D11: 慕容子期 | E11: 1 | F11: 8000 | G11: 金币 | H11: 30000 | I11: =VLOOKUP(G11,[2]Sheet1!$A:$E,5,FALSE)*H11 ->  | J11: 成长护符 | K11: 1000 | L11: =VLOOKUP(J11,[2]Sheet1!$A:$E,5,FALSE)*K11 ->  | Q11: =ROUND(VLOOKUP(D11,[2]Sheet1!$A:$E,2,FALSE),0) ->  | T11: =ROUND(VLOOKUP(G11,[2]Sheet1!$A:$E,2,FALSE),0) ->  | W11: =ROUND(VLOOKUP(J11,[2]Sheet1!$A:$E,2,FALSE),0) -> 
B14: 急速探险达人
C15: 内容 | D15: 奖励 | E15: 数量 | F15: 价值 | G15: 奖励 | H15: 数量 | I15: 价值 | J15: 奖励 | K15: 数量 | L15: 价值 | N15: 总价值 | R15: 玩家投入 | S15: 消耗 | T15: 实际每档消耗
C16: 急速探险次数达到5 | D16: 灵丹 | E16: 50 | F16: =ROUND(VLOOKUP(D16,[2]Sheet1!$A:$E,5,FALSE)*E16,0) ->  | G16: 金币 | H16: 10000 | I16: =ROUND(VLOOKUP(G16,[2]Sheet1!$A:$E,5,FALSE)*H16,0) ->  | J16: 成长护符 | K16: 300 | L16: =VLOOKUP(J16,[2]Sheet1!$A:$E,5,FALSE)*K16 ->  | N16: =L16+I16+F16 ->  | O16: 第1次 | P16: 免费 | R16: 5 | S16: =R16*100-100 -> 400 | T16: =S16 -> 400
C17: 急速探险次数达到10 | D17: 梦魇妖壶 | E17: 50 | F17: =ROUND(VLOOKUP(D17,[2]Sheet1!$A:$E,5,FALSE)*E17,0) ->  | G17: 金币 | H17: 10000 | I17: =ROUND(VLOOKUP(G17,[2]Sheet1!$A:$E,5,FALSE)*H17,0) ->  | J17: 成长护符 | K17: 300 | L17: =VLOOKUP(J17,[2]Sheet1!$A:$E,5,FALSE)*K17 ->  | N17: =L17+I17+F17 ->  | O17: 第2次 | P17: 100 | R17: 10 | S17: =R17*100-100 -> 900 | T17: =S17-S16 -> 500 | V17: 实际消耗 | W17: 实际获得 | X17: 返利比
C18: 急速探险次数达到15 | D18: 灵丹 | E18: 100 | F18: =ROUND(VLOOKUP(D18,[2]Sheet1!$A:$E,5,FALSE)*E18,0) ->  | G18: 金币 | H18: 10000 | I18: =ROUND(VLOOKUP(G18,[2]Sheet1!$A:$E,5,FALSE)*H18,0) ->  | J18: 成长护符 | K18: 300 | L18: =VLOOKUP(J18,[2]Sheet1!$A:$E,5,FALSE)*K18 ->  | O18: 第3次 | P18: 100 | R18: 15 | S18: 1400 | T18: =S18-S17 -> 500 | V18: =SUM(T16:T24) -> 4900 | W18: =SUM(F16:F24) ->  | X18: =V18/W18 -> 
C19: 急速探险次数达到20 | D19: 梦魇妖壶 | E19: 100 | F19: =ROUND(VLOOKUP(D19,[2]Sheet1!$A:$E,5,FALSE)*E19,0) ->  | G19: 金币 | H19: 10000 | I19: =ROUND(VLOOKUP(G19,[2]Sheet1!$A:$E,5,FALSE)*H19,0) ->  | J19: 成长护符 | K19: 300 | L19: =VLOOKUP(J19,[2]Sheet1!$A:$E,5,FALSE)*K19 ->  | O19: 第4次 | P19: 100 | R19: 20 | S19: 1900 | T19: 500
C20: 急速探险次数达到25 | D20: 铁矿石 | E20: 5000 | F20: =ROUND(VLOOKUP(D20,[2]Sheet1!$A:$E,5,FALSE)*E20,0) ->  | G20: 金币 | H20: 20000 | I20: =ROUND(VLOOKUP(G20,[2]Sheet1!$A:$E,5,FALSE)*H20,0) ->  | J20: 成长护符 | K20: 600 | L20: =VLOOKUP(J20,[2]Sheet1!$A:$E,5,FALSE)*K20 ->  | R20: 25 | S20: 2400 | T20: 500
C21: 急速探险次数达到30 | D21: 5星随机碎片 | E21: 10 | F21: =VLOOKUP(D21,[2]Sheet1!$A:$E,5,FALSE)*E21 ->  | G21: 金币 | H21: 20000 | I21: =ROUND(VLOOKUP(G21,[2]Sheet1!$A:$E,5,FALSE)*H21,0) ->  | J21: 成长护符 | K21: 600 | L21: =VLOOKUP(J21,[2]Sheet1!$A:$E,5,FALSE)*K21 ->  | P21: =SUM(P17:P19) -> 300 | R21: 30 | S21: 2900 | T21: 500
C22: 急速探险次数达到35 | D22: 5星随机碎片 | E22: 15 | F22: =VLOOKUP(D22,[2]Sheet1!$A:$E,5,FALSE)*E22 ->  | G22: 金币 | H22: 20000 | I22: =ROUND(VLOOKUP(G22,[2]Sheet1!$A:$E,5,FALSE)*H22,0) ->  | J22: 成长护符 | K22: 600 | L22: =VLOOKUP(J22,[2]Sheet1!$A:$E,5,FALSE)*K22 ->  | R22: 35 | S22: 3400 | T22: 500
C23: 急速探险次数达到40 | D23: 5星随机碎片 | E23: 25 | F23: =VLOOKUP(D23,[2]Sheet1!$A:$E,5,FALSE)*E23 ->  | G23: 金币 | H23: 30000 | I23: =ROUND(VLOOKUP(G23,[2]Sheet1!$A:$E,5,FALSE)*H23,0) ->  | J23: 成长护符 | K23: 1000 | L23: =VLOOKUP(J23,[2]Sheet1!$A:$E,5,FALSE)*K23 ->  | R23: 40 | S23: 3900 | T23: 500
C24: 急速探险次数达到50 | D24: 云灵 | E24: 1 | F24: 8000 | G24: 金币 | H24: 50000 | I24: =ROUND(VLOOKUP(G24,[2]Sheet1!$A:$E,5,FALSE)*H24,0) ->  | J24: 成长护符 | K24: 3000 | L24: =VLOOKUP(J24,[2]Sheet1!$A:$E,5,FALSE)*K24 ->  | R24: 50 | S24: 4900 | T24: 1000
G28: 道具
F29: =H29&"|"&N29&"|"&K29 ->  | G29: =ROUND(VLOOKUP(D16,[2]Sheet1!$A:$E,2,FALSE),0) ->  | H29: =G29&"#"&E16 ->  | J29: =ROUND(VLOOKUP(G16,[2]Sheet1!$A:$E,2,FALSE),0) ->  | K29: =J29&"#"&H16 ->  | M29: =ROUND(VLOOKUP(J16,[2]Sheet1!$A:$E,2,FALSE),0) ->  | N29: =M29&"#"&K16 -> 
F30: =H30&"|"&N30&"|"&K30 ->  | G30: =ROUND(VLOOKUP(D17,[2]Sheet1!$A:$E,2,FALSE),0) ->  | H30: =G30&"#"&E17 ->  | J30: =ROUND(VLOOKUP(G17,[2]Sheet1!$A:$E,2,FALSE),0) ->  | K30: =J30&"#"&H17 ->  | M30: =ROUND(VLOOKUP(J17,[2]Sheet1!$A:$E,2,FALSE),0) ->  | N30: =M30&"#"&K17 -> 
G31: =ROUND(VLOOKUP(D18,[2]Sheet1!$A:$E,2,FALSE),0) ->  | J31: =ROUND(VLOOKUP(G18,[2]Sheet1!$A:$E,2,FALSE),0) ->  | M31: =ROUND(VLOOKUP(J18,[2]Sheet1!$A:$E,2,FALSE),0) -> 
G32: =ROUND(VLOOKUP(D19,[2]Sheet1!$A:$E,2,FALSE),0) ->  | J32: =ROUND(VLOOKUP(G19,[2]Sheet1!$A:$E,2,FALSE),0) ->  | M32: =ROUND(VLOOKUP(J19,[2]Sheet1!$A:$E,2,FALSE),0) -> 
G33: =ROUND(VLOOKUP(D20,[2]Sheet1!$A:$E,2,FALSE),0) ->  | J33: =ROUND(VLOOKUP(G20,[2]Sheet1!$A:$E,2,FALSE),0) ->  | M33: =ROUND(VLOOKUP(J20,[2]Sheet1!$A:$E,2,FALSE),0) -> 
G34: =ROUND(VLOOKUP(D21,[2]Sheet1!$A:$E,2,FALSE),0) ->  | J34: =ROUND(VLOOKUP(G21,[2]Sheet1!$A:$E,2,FALSE),0) ->  | M34: =ROUND(VLOOKUP(J21,[2]Sheet1!$A:$E,2,FALSE),0) -> 
G35: =ROUND(VLOOKUP(D22,[2]Sheet1!$A:$E,2,FALSE),0) ->  | J35: =ROUND(VLOOKUP(G22,[2]Sheet1!$A:$E,2,FALSE),0) ->  | M35: =ROUND(VLOOKUP(J22,[2]Sheet1!$A:$E,2,FALSE),0) -> 
G36: =ROUND(VLOOKUP(D23,[2]Sheet1!$A:$E,2,FALSE),0) ->  | J36: =ROUND(VLOOKUP(G23,[2]Sheet1!$A:$E,2,FALSE),0) ->  | M36: =ROUND(VLOOKUP(J23,[2]Sheet1!$A:$E,2,FALSE),0) -> 
G37: =ROUND(VLOOKUP(D24,[2]Sheet1!$A:$E,2,FALSE),0) ->  | J37: =ROUND(VLOOKUP(G24,[2]Sheet1!$A:$E,2,FALSE),0) ->  | M37: =ROUND(VLOOKUP(J24,[2]Sheet1!$A:$E,2,FALSE),0) -> 

Sheet Sheet2
A1: Name | B1: Id
A2: string | B2: int
A3: 2 | B3: 2
A4: 道具名 | B4: 道具id
A5: ="" ->  | B5: 0
A8: 行动力 | B8: 1
A9: 体力 | B9: 2
A10: 成长护符 | B10: 3
A11: 梦魇妖壶 | B11: 4
A12: 灵丹 | B12: 5
A13: 归元髓液 | B13: 6
A14: 金币 | B14: 14
A15: 魂晶 | B15: 15
A16: 妖晶 | B16: 16
A17: 经验(玩家) | B17: 17
A18: vip经验 | B18: 18
A19: 聚灵神戒 | B19: 19
A20: 元素神戒 | B20: 20
A21: 妖魂魔戒 | B21: 21
A22: 妖灵玉 | B22: 22
A23: 挑战券 | B23: 23
A24: 荣耀徽章 | B24: 24
A25: 精英证明 | B25: 25
A26: 心火明晶 | B26: 26
A27: 普通入场券 | B27: 27
A28: 精英入场券 | B28: 28
A29: 深渊魔石 | B29: 29
A30: 远古妖魂宝箱 | B30: 30
A31: 不朽妖魂宝箱 | B31: 31
A32: 刀劳鬼妖魂箱 | B32: 32
A33: 蒸笼仔妖魂箱 | B33: 33
A34: 拘魂姬妖魂箱 | B34: 34
A35: 横公妖魂箱 | B35: 35
A36: 孙龙妖魂箱 | B36: 36
A37: 陌刀妖魂箱 | B37: 37
A38: 火鼠妖魂箱 | B38: 38
A39: 拦面叟妖魂箱 | B39: 39
A40: 风狸妖魂箱 | B40: 40
A41: 天麟妖魂箱 | B41: 41
A42: 神秘妖魂宝箱 | B42: 42
A43: 次元炸弹 | B43: 43
A44: 外敌挑战券 | B44: 44
A45: 试炼币 | B45: 45
A46: 光辉灵戒 | B46: 46
A47: 时光沙漏 | B47: 47
A48: 蒸笼仔妖魂箱 | B48: 48
A49: 拘魂姬妖魂箱 | B49: 49
A50: 天麟妖魂箱 | B50: 50
A51: 火鼠妖魂箱 | B51: 51
A52: 风狸妖魂箱 | B52: 52
A53: 铁矿石 | B53: 1001
A54: 金矿石（未使用） | B54: 1002
A55: 灵石（未使用） | B55: 1003
A56: 赤血石（未使用） | B56: 1004
A57: 皮革（未使用） | B57: 1005
A58: 月影水晶（未使用） | B58: 1006
A59: 铁锭 | B59: 1007
A60: 秘钢锭 | B60: 1008
A61: 玄金锭 | B61: 1009
A62: 小型铁矿堆（未使用） | B62: 1010
A63: 中型铁矿堆（未使用） | B63: 1011
A64: 大型铁矿堆（未使用） | B64: 1012
A65: 超大型铁矿堆（未使用） | B65: 1013
A66: 小型灵石堆（未使用） | B66: 1014
A67: 中型灵石堆（未使用） | B67: 1015
A68: 大型灵石堆（未使用） | B68: 1016
A69: 超大型灵石堆（未使用） | B69: 1017
A70: 小型金矿堆（未使用） | B70: 1018
A71: 中型金矿堆（未使用） | B71: 1019
A72: 大型金矿堆（未使用） | B72: 1020
A73: 超大型金矿堆（未使用） | B73: 1021
A74: 遁地符（未使用） | B74: 1501
A75: 照妖镜（未使用） | B75: 1502
A76: 镐头（未使用） | B76: 1503
A77: 藏宝图碎片 | B77: 1504
A78: 太初藏宝图碎片 | B78: 1505
A79: 藏宝图 | B79: 1506
A80: 太初藏宝图 | B80: 1507
A81: 绿色装备 | B81: 1508
A82: 蓝色装备 | B82: 1509
A83: 紫色装备 | B83: 1510
A84: 橙色装备 | B84: 1511
A85: 迷魂之心 | B85: 1520
A86: 阵石 | B86: 1521
A87: 妖兽精血 | B87: 1522
A88: 刻笔 | B88: 1523
A89: 阵石 | B89: 1524
A90: 破损的兵器 | B90: 1525
A91: 记忆碎片 | B91: 1526
A92: 木材 | B92: 1527
A93: 藏宝图 | B93: 1528
A94: 半卷藏宝图 | B94: 1529
A95: 淡水 | B95: 1530
A96: 兽肉 | B96: 1531
A97: 幻魂草 | B97: 1532
A98: 平民的财物 | B98: 1533
A99: 法阵灵石 | B99: 1534
A100: 长青叶 | B100: 1535
A101: 止血散 | B101: 1536
A102: 精纯精血 | B102: 1537
A103: 忠义之心 | B103: 1538
A104: 仁慈之心 | B104: 1539
A105: 坚毅之心 | B105: 1540
A106: 羁绊之心 | B106: 1541
A107: 耳目之石 | B107: 1542
A108: 饕餮之津 | B108: 1543
A109: 生死之悟 | B109: 1544
A110: 七叶草 | B110: 1545
A111: 兽骨 | B111: 1546
A112: 天山雪莲 | B112: 1547
A113: 妖兽毛皮 | B113: 1548
A114: 墓穴宝石 | B114: 1549
A115: 请帖 | B115: 1550
A116: 气息结晶 | B116: 1551
A117: 大块气息结晶 | B117: 1552
A118: 透镜 | B118: 1553
A119: 母亲的信物 | B119: 1554
A120: 史诗装备宝箱 | B120: 1555
A121: 传说装备宝箱 | B121: 1556
A122: 戮魔短杖-蓝图 | B122: 3001
A123: 天武短杖-蓝图 | B123: 3002
A124: 戮魔之刺-蓝图 | B124: 3003
A125: 天武之刺-蓝图 | B125: 3004
A126: 戮魔战斧-蓝图 | B126: 3005
A127: 天武战斧-蓝图 | B127: 3006
A128: 戮魔之刃-蓝图 | B128: 3007
A129: 天武之刃-蓝图 | B129: 3008
A130: 戮魔法铃-蓝图 | B130: 3009
A131: 天武法铃-蓝图 | B131: 3010
A132: 修罗战甲-蓝图 | B132: 3011
A133: 修罗战甲-蓝图 | B133: 3012
A134: 红莲战甲-蓝图 | B134: 3013
A135: 红莲战甲-蓝图 | B135: 3014
A136: 修罗战盔-蓝图 | B136: 3015
A137: 红莲战盔-蓝图 | B137: 3016
A138: 修罗战靴-蓝图 | B138: 3017
A139: 红莲战靴-蓝图 | B139: 3018
A140: 修罗戒指-蓝图 | B140: 3019
A141: 红莲戒指-蓝图 | B141: 3020
A142: 修罗束带-蓝图 | B142: 3021
A143: 红莲腰带-蓝图 | B143: 3022
A144: 无为神杖-蓝图 | B144: 3023
A145: 悯生神杖-蓝图 | B145: 3024
A146: 无为神剑-蓝图 | B146: 3025
A147: 悯生神剑-蓝图 | B147: 3026
A148: 无为神斧-蓝图 | B148: 3027
A149: 悯生神斧-蓝图 | B149: 3028
A150: 无为之刃-蓝图 | B150: 3029
A151: 悯生之刃-蓝图 | B151: 3030
A152: 无为圣铃-蓝图 | B152: 3031
A153: 悯生圣铃-蓝图 | B153: 3032
A154: 七星神甲-蓝图 | B154: 3033
A155: 七星神甲-蓝图 | B155: 3034
A156: 紫微神甲-蓝图 | B156: 3035
A157: 紫微神甲-蓝图 | B157: 3036
A158: 七星战盔-蓝图 | B158: 3037
A159: 紫微战盔-蓝图 | B159: 3038
A160: 七星战靴-蓝图 | B160: 3039
A161: 紫微战靴-蓝图 | B161: 3040
A162: 七星戒指-蓝图 | B162: 3041
A163: 紫微戒指-蓝图 | B163: 3042
A164: 七星玉带-蓝图 | B164: 3043
A165: 紫微束带-蓝图 | B165: 3044
A166: 藏雷短杖-蓝图 | B166: 3045
A167: 藏雷长剑-蓝图 | B167: 3046
A168: 藏雷战斧-蓝图 | B168: 3047
A169: 藏雷之刃-蓝图 | B169: 3048
A170: 藏雷法铃-蓝图 | B170: 3049
A171: 洞察战甲-蓝图 | B171: 3050
A172: 洞察战甲-蓝图 | B172: 3051
A173: 洞察战盔-蓝图 | B173: 3052
A174: 洞察战靴-蓝图 | B174: 3053
A175: 洞察戒指-蓝图 | B175: 3054
A176: 洞察束带-蓝图 | B176: 3055
A177: 刹那神杖-蓝图 | B177: 3056
A178: 刹那神刺-蓝图 | B178: 3057
A179: 刹那神戟-蓝图 | B179: 3058
A180: 刹那古剑-蓝图 | B180: 3059
A181: 刹那圣铃-蓝图 | B181: 3060
A182: 玄冥战甲-蓝图 | B182: 3061
A183: 玄冥战甲-蓝图 | B183: 3062
A184: 玄冥战盔-蓝图 | B184: 3063
A185: 玄冥战靴-蓝图 | B185: 3064
A186: 玄冥神戒-蓝图 | B186: 3065
A187: 玄冥束带-蓝图 | B187: 3066
A188: 史诗装备蓝图宝箱 | B188: 3067
A189: 传说装备蓝图宝箱 | B189: 3068
A190: 魔铃 | B190: 6001
A191: 牛魔 | B191: 6002
A192: 破狼刃 | B192: 6003
A193: 叶青 | B193: 6004
A194: 饕餮 | B194: 6005
A195: 嗜魂虎 | B195: 6006
A196: 散财 | B196: 6007
A197: 狐云 | B197: 6008
A198: 鳞波甲 | B198: 6009
A199: 触魔 | B199: 6010
A200: 回音 | B200: 6011
A201: 镜心玉笛 | B201: 6012
A202: 不尽木 | B202: 6013
... 1532 more rows
